[Event "Live Chess"]
[Site "Chess.com"]
[Date "2023.05.21"]
[Round "-"]
[White "peter-785"]
[Black "romchyk1219"]
[Result "1-0"]
[WhiteElo "1208"]
[BlackElo "633"]
[TimeControl "300"]
[EndTime "18:01:42 PDT"]
[Termination "peter-785 won by resignation"]

1. e4 {[%clk 0:04:57.6]} 1... d6 {[%clk 0:04:59.1]} 2. Nf3 {[%clk 0:04:57.1]}
2... Nf6 {[%clk 0:04:58.5]} 3. Nc3 {[%clk 0:04:54.8]} 3... g6 {[%clk 0:04:57.6]}
4. Bc4 {[%clk 0:04:53]} 4... Bg7 {[%clk 0:04:56.8]} 5. d4 {[%clk 0:04:52.1]}
5... O-O {[%clk 0:04:56.2]} 6. O-O {[%clk 0:04:50.2]} 6... Nc6 {[%clk
0:04:55.5]} 7. Be3 {[%clk 0:04:43.7]} 7... Ng4 {[%clk 0:04:45.2]} 8. d5 {[%clk
0:04:28.6]} 8... Nce5 {[%clk 0:04:37]} 9. Nxe5 {[%clk 0:04:17.7]} 9... Nxe3
{[%clk 0:04:30.5]} 10. fxe3 {[%clk 0:04:14.7]} 10... Bxe5 {[%clk 0:04:29.9]} 11.
Be2 {[%clk 0:04:01.1]} 11... e6 {[%clk 0:04:25]} 12. Bg4 {[%clk 0:03:34.1]}
12... exd5 {[%clk 0:04:20.4]} 13. exd5 {[%clk 0:03:32.2]} 13... Bxg4 {[%clk
0:04:18.6]} 14. Qxg4 {[%clk 0:03:31.3]} 14... Qc8 {[%clk 0:04:15.6]} 15. Qg5
{[%clk 0:03:22.9]} 15... Qd8 {[%clk 0:04:07.7]} 16. Qg4 {[%clk 0:03:17.3]} 16...
f5 {[%clk 0:04:06.6]} 17. Qh3 {[%clk 0:03:09]} 17... Bxc3 {[%clk 0:03:43]} 18.
bxc3 {[%clk 0:03:06.3]} 18... Qf6 {[%clk 0:03:39.6]} 19. e4 {[%clk 0:03:02.4]}
19... fxe4 {[%clk 0:03:37.6]} 20. Rxf6 {[%clk 0:03:00.7]} 20... Rxf6 {[%clk
0:03:36.2]} 21. Rf1 {[%clk 0:02:58.1]} 21... Rxf1+ {[%clk 0:03:34.9]} 22. Kxf1
{[%clk 0:02:57.5]} 22... Rf8+ {[%clk 0:03:33.5]} 23. Ke2 {[%clk 0:02:56.4]}
23... Re8 {[%clk 0:03:31.8]} 24. Qe3 {[%clk 0:02:49.3]} 24... c6 {[%clk
0:03:28.9]} 25. dxc6 {[%clk 0:02:44.5]} 25... bxc6 {[%clk 0:03:28.8]} 26. Qxa7
{[%clk 0:02:42]} 26... Kf8 {[%clk 0:03:18.2]} 27. Qc7 {[%clk 0:02:34.7]} 27...
Re7 {[%clk 0:03:11.7]} 28. Qxd6 {[%clk 0:02:33.3]} 28... Kf7 {[%clk 0:03:10.1]}
29. Qxc6 {[%clk 0:02:28.4]} 29... Re6 {[%clk 0:03:08.5]} 30. Qd5 {[%clk
0:02:24.6]} 30... Kf6 {[%clk 0:03:07.1]} 31. Qd4+ {[%clk 0:02:20.9]} 31... Re5
{[%clk 0:03:02.2]} 32. c4 {[%clk 0:02:19.5]} 32... Kf5 {[%clk 0:03:00]} 33. Qd7+
{[%clk 0:02:13.4]} 33... Kf4 {[%clk 0:02:58.5]} 34. Qf7+ {[%clk 0:02:08.3]}
34... Kg4 {[%clk 0:02:57.5]} 35. Qxh7 {[%clk 0:02:01.5]} 35... Re6 {[%clk
0:02:52.4]} 36. Qh3+ {[%clk 0:01:59.8]} 36... Kf4 {[%clk 0:02:51]} 37. Qxe6
{[%clk 0:01:58.8]} 37... e3 {[%clk 0:02:49.8]} 38. Qxe3+ {[%clk 0:01:57.3]}
38... Kf5 {[%clk 0:02:49.4]} 39. c5 {[%clk 0:01:55.6]} 39... Kf6 {[%clk
0:02:49.3]} 40. c6 {[%clk 0:01:55]} 40... Kg7 {[%clk 0:02:47.7]} 41. c7 {[%clk
0:01:54.4]} 41... g5 {[%clk 0:02:46]} 42. Qxg5+ {[%clk 0:01:51.4]} 42... Kf7
{[%clk 0:02:43.4]} 43. Qd8 {[%clk 0:01:48.8]} 43... Ke6 {[%clk 0:02:42.2]} 44.
c8=Q+ {[%clk 0:01:47.4]} 44... Ke5 {[%clk 0:02:41.1]} 45. Qc3+ {[%clk
0:01:43.3]} 45... Kf4 {[%clk 0:02:41]} 46. Qdd2+ {[%clk 0:01:35.2]} 46... Kf5
{[%clk 0:02:40.9]} 47. Qce3 {[%clk 0:01:32.9]} 47... Kg4 {[%clk 0:02:39.4]} 48.
Qdd4+ {[%clk 0:01:29.1]} 48... Kf5 {[%clk 0:02:38.4]} 49. Qee5+ {[%clk
0:01:27.7]} 49... Kg6 {[%clk 0:02:36.9]} 50. Qdf4 {[%clk 0:01:24]} 50... Kh7
{[%clk 0:02:34.9]} 51. Qeg5 {[%clk 0:01:22.1]} 51... Kh8 {[%clk 0:02:32.7]} 1-0

[Event "Live Chess"]
[Site "Chess.com"]
[Date "2023.05.21"]
[Round "-"]
[White "jimwad"]
[Black "Fazer180"]
[Result "0-1"]
[WhiteElo "1252"]
[BlackElo "1745"]
[TimeControl "300"]
[EndTime "18:01:54 PDT"]
[Termination "Fazer180 won by resignation"]

1. d4 {[%clk 0:04:58.2]} 1... e6 {[%clk 0:04:59]} 2. e4 {[%clk 0:04:56.8]} 2...
d5 {[%clk 0:04:58.9]} 3. e5 {[%clk 0:04:54.9]} 3... c5 {[%clk 0:04:57.6]} 4. c3
{[%clk 0:04:53.3]} 4... Nc6 {[%clk 0:04:56.9]} 5. Nf3 {[%clk 0:04:51.7]} 5...
Qb6 {[%clk 0:04:55.8]} 6. Qb3 {[%clk 0:04:49.9]} 6... cxd4 {[%clk 0:04:45.3]} 7.
Qxb6 {[%clk 0:04:47.5]} 7... axb6 {[%clk 0:04:44.6]} 8. cxd4 {[%clk 0:04:46.7]}
8... Nge7 {[%clk 0:04:39.3]} 9. a3 {[%clk 0:04:45.3]} 9... Nf5 {[%clk
0:04:36.3]} 10. Be3 {[%clk 0:04:43.8]} 10... Bd7 {[%clk 0:04:26.5]} 11. Bb5
{[%clk 0:04:36.7]} 11... Be7 {[%clk 0:04:15.9]} 12. O-O {[%clk 0:04:35.1]} 12...
O-O {[%clk 0:04:14.7]} 13. Rd1 {[%clk 0:04:28.3]} 13... Rfd8 {[%clk 0:04:01.3]}
14. Nc3 {[%clk 0:04:22.9]} 14... Na5 {[%clk 0:03:56.7]} 15. b4 {[%clk
0:04:12.3]} 15... Bxb5 {[%clk 0:03:42.4]} 16. Nxb5 {[%clk 0:04:09.5]} 16... Nc4
{[%clk 0:03:38.2]} 17. Bc1 {[%clk 0:03:52.3]} 17... Bxb4 {[%clk 0:03:20.2]} 18.
Bg5 {[%clk 0:03:38.5]} 18... Be7 {[%clk 0:03:12.7]} 19. Bxe7 {[%clk 0:03:36.3]}
19... Nxe7 {[%clk 0:03:12.5]} 20. a4 {[%clk 0:03:33.3]} 20... Ra5 {[%clk
0:02:40]} 21. Rdb1 {[%clk 0:03:26.5]} 21... Rda8 {[%clk 0:02:30.9]} 22. Nc7
{[%clk 0:03:21.9]} 22... Rc8 {[%clk 0:02:22.3]} 23. Nb5 {[%clk 0:03:19.4]} 23...
Nc6 {[%clk 0:02:11.7]} 24. h3 {[%clk 0:03:06]} 24... Raa8 {[%clk 0:02:08.7]} 25.
Nd6 {[%clk 0:02:55.6]} 25... Nxd6 {[%clk 0:02:05.1]} 26. exd6 {[%clk 0:02:54.6]}
26... Ra6 {[%clk 0:02:02.6]} 27. Ne5 {[%clk 0:02:49.4]} 27... Rd8 {[%clk
0:01:56.3]} 28. Nxc6 {[%clk 0:02:37.6]} 28... bxc6 {[%clk 0:01:56.2]} 29. a5
{[%clk 0:02:36.4]} 29... bxa5 {[%clk 0:01:50.9]} 30. Rb7 {[%clk 0:02:27.7]}
30... g6 {[%clk 0:01:41.9]} 31. d7 {[%clk 0:02:23.9]} 31... a4 {[%clk
0:01:32.5]} 32. Ra3 {[%clk 0:02:21.1]} 32... Raa8 {[%clk 0:01:28.4]} 33. Rc7
{[%clk 0:02:17.9]} 33... Kf8 {[%clk 0:01:22.4]} 34. Rxc6 {[%clk 0:02:14.9]}
34... Rxd7 {[%clk 0:01:21.4]} 35. Rcc3 {[%clk 0:02:08.7]} 35... Rb7 {[%clk
0:01:19.5]} 36. Rd3 {[%clk 0:02:06.8]} 36... Rb4 {[%clk 0:01:14.3]} 37. f4
{[%clk 0:02:03.8]} 37... Rab8 {[%clk 0:01:12.6]} 38. Kf2 {[%clk 0:02:02.5]}
38... Rb3 {[%clk 0:01:11]} 39. Ke3 {[%clk 0:01:58.7]} 39... Rxd3+ {[%clk
0:01:07.7]} 40. Kxd3 {[%clk 0:01:57.2]} 40... Ra8 {[%clk 0:01:00.5]} 41. Kc3
{[%clk 0:01:55]} 41... Ke7 {[%clk 0:01:00.1]} 42. Kb4 {[%clk 0:01:53.5]} 42...
Kf6 {[%clk 0:00:59.8]} 43. Rxa4 {[%clk 0:01:52.5]} 43... Rxa4+ {[%clk
0:00:58.7]} 44. Kxa4 {[%clk 0:01:51.8]} 44... Kf5 {[%clk 0:00:58.3]} 45. g3
{[%clk 0:01:50.7]} 45... Ke4 {[%clk 0:00:57.3]} 46. Kb4 {[%clk 0:01:49.1]} 46...
Kxd4 {[%clk 0:00:56.8]} 47. Kb3 {[%clk 0:01:47.1]} 47... Ke3 {[%clk 0:00:55.7]}
48. Kc3 {[%clk 0:01:45.9]} 48... d4+ {[%clk 0:00:54.7]} 49. Kc2 {[%clk
0:01:43.7]} 49... Ke2 {[%clk 0:00:54]} 0-1

[Event "Live Chess"]
[Site "Chess.com"]
[Date "2023.05.21"]
[Round "-"]
[White "gmnorfolk"]
[Black "ThatGuyNamedJeff"]
[Result "1-0"]
[WhiteElo "2127"]
[BlackElo "1571"]
[TimeControl "300"]
[EndTime "18:02:03 PDT"]
[Termination "gmnorfolk won by resignation"]

1. d4 {[%clk 0:04:56.4]} 1... Nf6 {[%clk 0:04:59]} 2. c4 {[%clk 0:04:51.3]} 2...
g6 {[%clk 0:04:57.1]} 3. Nc3 {[%clk 0:04:49.5]} 3... d5 {[%clk 0:04:56.6]} 4.
cxd5 {[%clk 0:04:48.3]} 4... Nxd5 {[%clk 0:04:56.5]} 5. e4 {[%clk 0:04:47]} 5...
Nxc3 {[%clk 0:04:55.6]} 6. bxc3 {[%clk 0:04:46.4]} 6... Bg7 {[%clk 0:04:55.2]}
7. Be3 {[%clk 0:04:46]} 7... O-O {[%clk 0:04:50.8]} 8. Rc1 {[%clk 0:04:45.5]}
8... c5 {[%clk 0:04:46.9]} 9. Qd2 {[%clk 0:04:44.1]} 9... Qa5 {[%clk 0:04:43.6]}
10. Be2 {[%clk 0:04:39.9]} 10... cxd4 {[%clk 0:04:40.2]} 11. cxd4 {[%clk
0:04:38.5]} 11... Qxd2+ {[%clk 0:04:39.4]} 12. Kxd2 {[%clk 0:04:35.6]} 12... f5
{[%clk 0:04:30.9]} 13. e5 {[%clk 0:04:29.3]} 13... Nc6 {[%clk 0:04:24.8]} 14.
Bc4+ {[%clk 0:04:21.5]} 14... Kh8 {[%clk 0:04:23]} 15. f4 {[%clk 0:04:16.4]}
15... Rd8 {[%clk 0:04:18.2]} 16. Nf3 {[%clk 0:04:04.3]} 16... h6 {[%clk
0:04:05]} 17. Ke2 {[%clk 0:03:55.1]} 17... g5 {[%clk 0:03:52.9]} 18. fxg5 {[%clk
0:03:51.1]} 18... hxg5 {[%clk 0:03:52.8]} 19. Nxg5 {[%clk 0:03:24.7]} 19...
Nxd4+ {[%clk 0:03:39]} 20. Kf2 {[%clk 0:03:21.5]} 20... Rd7 {[%clk 0:02:50.1]}
21. e6 {[%clk 0:03:11.9]} 21... Rc7 {[%clk 0:02:09.3]} 22. Rhd1 {[%clk
0:02:59.7]} 22... Nc6 {[%clk 0:01:46.1]} 23. Bf4 {[%clk 0:02:46.4]} 23... Be5
{[%clk 0:01:27.9]} 24. Nf7+ {[%clk 0:02:41.9]} 1-0

[Event "Live Chess"]
[Site "Chess.com"]
[Date "2023.05.21"]
[Round "-"]
[White "alanmike75"]
[Black "wot-not"]
[Result "1-0"]
[WhiteElo "1574"]
[BlackElo "1534"]
[TimeControl "300"]
[EndTime "18:02:21 PDT"]
[Termination "alanmike75 won by resignation"]

1. e4 {[%clk 0:04:57.1]} 1... e5 {[%clk 0:04:58.2]} 2. Nf3 {[%clk 0:04:55.9]}
2... d6 {[%clk 0:04:57.6]} 3. d4 {[%clk 0:04:53]} 3... f5 {[%clk 0:04:56.4]} 4.
dxe5 {[%clk 0:04:46.9]} 4... fxe4 {[%clk 0:04:55.4]} 5. Ng5 {[%clk 0:04:41.1]}
5... d5 {[%clk 0:04:53.7]} 6. e6 {[%clk 0:04:27.9]} 6... Nh6 {[%clk 0:04:51.2]}
7. Nc3 {[%clk 0:04:09.2]} 7... Bb4 {[%clk 0:04:46.5]} 8. Qh5+ {[%clk 0:03:54]}
8... Ke7 {[%clk 0:04:32.1]} 9. Nxe4 {[%clk 0:03:37.4]} 9... dxe4 {[%clk
0:04:25.5]} 10. Bg5+ {[%clk 0:03:35.5]} 10... Kxe6 {[%clk 0:04:14.1]} 11. Bxd8
{[%clk 0:03:33.7]} 11... Rxd8 {[%clk 0:04:13.3]} 12. Bc4+ {[%clk 0:03:24.6]}
12... Ke7 {[%clk 0:04:07.2]} 13. Qg5+ {[%clk 0:03:19.8]} 13... Kd6 {[%clk
0:03:53.1]} 14. Qxd8+ {[%clk 0:03:16.3]} 1-0

[Event "Live Chess"]
[Site "Chess.com"]
[Date "2023.05.21"]
[Round "-"]
[White "Tilbs_12"]
[Black "CeladonFish"]
[Result "1-0"]
[WhiteElo "1556"]
[BlackElo "1077"]
[TimeControl "300"]
[EndTime "18:02:24 PDT"]
[Termination "Tilbs_12 won - game abandoned"]

1. e4 {[%clk 0:04:58.4]} 1... d6 {[%clk 0:04:58.2]} 2. d4 {[%clk 0:04:56.6]}
2... Nf6 {[%clk 0:04:56.8]} 3. Nc3 {[%clk 0:04:54.8]} 3... g6 {[%clk 0:04:55.6]}
4. f4 {[%clk 0:04:53.8]} 4... Bg7 {[%clk 0:04:54.5]} 5. Nf3 {[%clk 0:04:53.2]}
5... O-O {[%clk 0:04:53.3]} 6. Be3 {[%clk 0:04:52.7]} 6... c5 {[%clk 0:04:49.6]}
7. e5 {[%clk 0:04:47.4]} 7... dxe5 {[%clk 0:04:47.2]} 8. dxe5 {[%clk 0:04:45]}
8... Qxd1+ {[%clk 0:04:46.7]} 9. Rxd1 {[%clk 0:04:43.3]} 9... Ng4 {[%clk
0:04:45.4]} 10. Bxc5 {[%clk 0:04:38.1]} 10... b6 {[%clk 0:04:42.6]} 11. Bxe7
{[%clk 0:04:35.3]} 11... Re8 {[%clk 0:04:41.2]} 12. Ba3 {[%clk 0:04:31.3]} 12...
Bf5 {[%clk 0:04:38.5]} 13. Bd3 {[%clk 0:04:13.9]} 13... Bxd3 {[%clk 0:04:33.2]}
14. cxd3 {[%clk 0:04:11.7]} 14... Nc6 {[%clk 0:04:30.2]} 15. h3 {[%clk
0:04:03.3]} 15... Nh6 {[%clk 0:04:27.7]} 16. O-O {[%clk 0:04:00.9]} 16... Rad8
{[%clk 0:04:20.9]} 17. d4 {[%clk 0:03:53.8]} 17... f6 {[%clk 0:04:17]} 18. Nb5
{[%clk 0:03:43]} 18... fxe5 {[%clk 0:04:13.2]} 19. fxe5 {[%clk 0:03:39.1]} 19...
Nf5 {[%clk 0:04:11]} 20. Rfe1 {[%clk 0:03:12.7]} 20... a6 {[%clk 0:04:05.1]} 21.
Nd6 {[%clk 0:03:03.5]} 21... Bf8 {[%clk 0:04:01.5]} 22. Nxe8 {[%clk 0:03:00.3]}
22... Bxa3 {[%clk 0:03:54.1]} 23. bxa3 {[%clk 0:02:59.4]} 23... Rxe8 {[%clk
0:03:52.3]} 24. d5 {[%clk 0:02:57.4]} 24... Na5 {[%clk 0:03:48.1]} 25. d6 {[%clk
0:02:55.8]} 25... Nb7 {[%clk 0:03:42.1]} 26. g4 {[%clk 0:02:51.7]} 26... Ng7
{[%clk 0:03:38.3]} 27. e6 {[%clk 0:02:41.7]} 27... Nxe6 {[%clk 0:03:34.4]} 28.
d7 {[%clk 0:02:37.1]} 28... Re7 {[%clk 0:03:32.2]} 29. Rxe6 {[%clk 0:02:34]}
29... Rxe6 {[%clk 0:03:29.5]} 30. d8=Q+ {[%clk 0:02:28]} 30... Kg7 {[%clk
0:03:26.4]} 31. Qc7+ {[%clk 0:02:24.5]} 31... Kh6 {[%clk 0:02:56]} 32. Qxb7
{[%clk 0:02:22.8]} 32... b5 {[%clk 0:02:52.6]} 33. Kf2 {[%clk 0:02:11.8]} 33...
a5 {[%clk 0:02:38.9]} 34. Rd7 {[%clk 0:02:06.4]} 1-0

[Event "Live Chess"]
[Site "Chess.com"]
[Date "2023.05.21"]
[Round "-"]
[White "Conradical12"]
[Black "manthanit"]
[Result "1-0"]
[WhiteElo "1638"]
[BlackElo "1046"]
[TimeControl "300"]
[EndTime "18:02:57 PDT"]
[Termination "Conradical12 won by resignation"]

1. e4 {[%clk 0:04:58.1]} 1... d5 {[%clk 0:04:57.7]} 2. exd5 {[%clk 0:04:51.8]}
2... Qxd5 {[%clk 0:04:57]} 3. Nc3 {[%clk 0:04:50.1]} 3... Qd8 {[%clk 0:04:55.8]}
4. Nf3 {[%clk 0:04:48.4]} 4... Nf6 {[%clk 0:04:54.7]} 5. Bc4 {[%clk 0:04:45.1]}
5... Nc6 {[%clk 0:04:53.9]} 6. d4 {[%clk 0:04:42.8]} 6... e6 {[%clk 0:04:53]} 7.
O-O {[%clk 0:04:41.2]} 7... Bd6 {[%clk 0:04:51.3]} 8. Bd3 {[%clk 0:04:38.8]}
8... Bd7 {[%clk 0:04:49.6]} 9. Re1 {[%clk 0:04:35.7]} 9... O-O {[%clk
0:04:44.9]} 10. a3 {[%clk 0:04:32.8]} 10... Ne7 {[%clk 0:04:43.8]} 11. Bg5
{[%clk 0:04:30.1]} 11... Ng6 {[%clk 0:04:40.2]} 12. Ne4 {[%clk 0:04:19.8]} 12...
Nxe4 {[%clk 0:04:35.4]} 13. Bxd8 {[%clk 0:04:16.6]} 13... Raxd8 {[%clk
0:04:16.3]} 14. Bxe4 {[%clk 0:04:15]} 14... c6 {[%clk 0:04:10.3]} 15. Bxg6
{[%clk 0:04:13.7]} 15... fxg6 {[%clk 0:04:08.9]} 16. Ne5 {[%clk 0:04:10.9]}
16... Bxe5 {[%clk 0:04:00.9]} 17. Rxe5 {[%clk 0:04:07.1]} 17... Bc8 {[%clk
0:03:57.9]} 18. Qe2 {[%clk 0:04:01.9]} 18... Rxd4 {[%clk 0:03:51.2]} 19. Re1
{[%clk 0:03:44.1]} 19... Re8 {[%clk 0:03:21.9]} 20. c3 {[%clk 0:03:39.3]} 20...
Rd5 {[%clk 0:03:14.7]} 21. Rxd5 {[%clk 0:03:33.8]} 21... cxd5 {[%clk 0:03:14.3]}
22. Qb5 {[%clk 0:03:32.1]} 22... Re7 {[%clk 0:03:10.8]} 23. Qc5 {[%clk
0:03:29.9]} 23... Bd7 {[%clk 0:03:07.5]} 24. Qxe7 {[%clk 0:03:28.5]} 1-0

[Event "Live Chess"]
[Site "Chess.com"]
[Date "2023.05.21"]
[Round "-"]
[White "grillage"]
[Black "worldchessleaguelive"]
[Result "1-0"]
[WhiteElo "1803"]
[BlackElo "1359"]
[TimeControl "300"]
[EndTime "18:03:17 PDT"]
[Termination "grillage won by resignation"]

1. d4 {[%clk 0:04:59.4]} 1... d5 {[%clk 0:04:57.6]} 2. Nf3 {[%clk 0:04:57]} 2...
Nf6 {[%clk 0:04:54.1]} 3. c4 {[%clk 0:04:55.7]} 3... dxc4 {[%clk 0:04:47.8]} 4.
e3 {[%clk 0:04:53.2]} 4... Bg4 {[%clk 0:04:44.6]} 5. Bxc4 {[%clk 0:04:51.2]}
5... e6 {[%clk 0:04:43.4]} 6. O-O {[%clk 0:04:49.1]} 6... Be7 {[%clk 0:04:42.4]}
7. Nc3 {[%clk 0:04:46.8]} 7... O-O {[%clk 0:04:41.9]} 8. h3 {[%clk 0:04:44.3]}
8... Bh5 {[%clk 0:04:40.4]} 9. Be2 {[%clk 0:04:28.6]} 9... a6 {[%clk 0:04:37.8]}
10. e4 {[%clk 0:04:26.1]} 10... Nbd7 {[%clk 0:04:33.4]} 11. Bf4 {[%clk
0:04:22.3]} 11... c6 {[%clk 0:04:31.9]} 12. Rc1 {[%clk 0:04:18.3]} 12... Rc8
{[%clk 0:04:30.6]} 13. Ne5 {[%clk 0:04:05.7]} 13... Bxe2 {[%clk 0:04:27.1]} 14.
Qxe2 {[%clk 0:04:04.5]} 14... Nxe5 {[%clk 0:04:26]} 15. dxe5 {[%clk 0:03:54.1]}
15... Ne8 {[%clk 0:04:20.2]} 16. Rfd1 {[%clk 0:03:51.1]} 16... Qb6 {[%clk
0:04:19]} 17. b3 {[%clk 0:03:36.2]} 17... Nc7 {[%clk 0:04:05.9]} 18. Qg4 {[%clk
0:03:33.4]} 18... Rfd8 {[%clk 0:03:56]} 19. Bh6 {[%clk 0:03:30.5]} 19... Bf8
{[%clk 0:03:53]} 20. Ne2 {[%clk 0:03:21.7]} 20... Ne8 {[%clk 0:03:46]} 21. Nf4
{[%clk 0:03:17.7]} 21... Kh8 {[%clk 0:03:43.7]} 22. Bg5 {[%clk 0:03:12.3]} 22...
Rxd1+ {[%clk 0:03:33.5]} 23. Rxd1 {[%clk 0:03:10.2]} 23... Rd8 {[%clk
0:03:32.7]} 24. Bxd8 {[%clk 0:03:03.3]} 1-0

[Event "Live Chess"]
[Site "Chess.com"]
[Date "2023.05.21"]
[Round "-"]
[White "LiamBellwood"]
[Black "ShanthamGrarks"]
[Result "1-0"]
[WhiteElo "2046"]
[BlackElo "2001"]
[TimeControl "300"]
[EndTime "18:03:20 PDT"]
[Termination "LiamBellwood won by resignation"]

1. d4 {[%clk 0:04:57.9]} 1... e6 {[%clk 0:04:56.1]} 2. Nc3 {[%clk 0:04:57.3]}
2... f5 {[%clk 0:04:54.5]} 3. e4 {[%clk 0:04:53.3]} 3... fxe4 {[%clk 0:04:52.1]}
4. Nxe4 {[%clk 0:04:53.2]} 4... Nf6 {[%clk 0:04:51.3]} 5. Bg5 {[%clk 0:04:50.4]}
5... Be7 {[%clk 0:04:49.8]} 6. Bxf6 {[%clk 0:04:49.9]} 6... Bxf6 {[%clk
0:04:48.8]} 7. c3 {[%clk 0:04:49.8]} 7... O-O {[%clk 0:04:47.4]} 8. Bd3 {[%clk
0:04:48.8]} 8... d5 {[%clk 0:04:45.2]} 9. Nxf6+ {[%clk 0:04:44.1]} 9... Qxf6
{[%clk 0:04:43.4]} 10. Nf3 {[%clk 0:04:44]} 10... Nd7 {[%clk 0:04:40.8]} 11. O-O
{[%clk 0:04:43.2]} 11... e5 {[%clk 0:04:34.8]} 12. dxe5 {[%clk 0:04:38.2]} 12...
Nxe5 {[%clk 0:04:34.3]} 13. Nxe5 {[%clk 0:04:37.7]} 13... Qxe5 {[%clk
0:04:33.6]} 14. Re1 {[%clk 0:04:37.6]} 14... Qd6 {[%clk 0:04:27.8]} 15. Qh5
{[%clk 0:04:25]} 15... g6 {[%clk 0:04:25.6]} 16. Qg5 {[%clk 0:04:16.3]} 16...
Bf5 {[%clk 0:04:13.8]} 17. Bxf5 {[%clk 0:04:07.1]} 17... Rxf5 {[%clk 0:04:11.4]}
18. Qe7 {[%clk 0:04:05.9]} 18... Qb6 {[%clk 0:03:55.9]} 19. Re2 {[%clk 0:03:58]}
19... Raf8 {[%clk 0:03:51.7]} 20. Rf1 {[%clk 0:03:43.6]} 20... d4 {[%clk
0:03:44.7]} 21. cxd4 {[%clk 0:03:22.2]} 21... Qxd4 {[%clk 0:03:40.6]} 22. Qxc7
{[%clk 0:03:16.9]} 22... b5 {[%clk 0:03:36.9]} 23. Re7 {[%clk 0:03:11.9]} 23...
R5f7 {[%clk 0:03:35.8]} 24. Rxf7 {[%clk 0:03:07.2]} 24... Rxf7 {[%clk
0:03:35.7]} 25. Qb8+ {[%clk 0:03:02.1]} 25... Kg7 {[%clk 0:03:29.6]} 26. Qxb5
{[%clk 0:02:58.5]} 26... h5 {[%clk 0:03:24.6]} 27. Qa5 {[%clk 0:02:49.3]} 27...
Kh7 {[%clk 0:03:18.2]} 28. Qc3 {[%clk 0:02:47.8]} 28... Qf4 {[%clk 0:03:14.3]}
29. Qe3 {[%clk 0:02:42.7]} 29... Qa4 {[%clk 0:03:10.7]} 30. a3 {[%clk
0:02:35.6]} 30... a5 {[%clk 0:03:08.4]} 31. Re1 {[%clk 0:02:20.2]} 31... Qc2
{[%clk 0:03:03.4]} 32. Qe2 {[%clk 0:01:47.5]} 32... Qc5 {[%clk 0:02:54.3]} 33.
g3 {[%clk 0:01:44.2]} 33... Qd4 {[%clk 0:02:48.4]} 34. Kg2 {[%clk 0:01:41.8]}
34... a4 {[%clk 0:02:46.5]} 35. h4 {[%clk 0:01:35.4]} 35... Qd5+ {[%clk
0:02:42.3]} 36. Qe4 {[%clk 0:01:31.7]} 36... Qc5 {[%clk 0:02:31.4]} 37. Re2
{[%clk 0:01:29.7]} 37... Qb5 {[%clk 0:02:29.7]} 38. Rc2 {[%clk 0:01:14.8]} 38...
Rg7 {[%clk 0:02:22.6]} 39. Rd2 {[%clk 0:01:07.2]} 39... Qa5 {[%clk 0:02:14.8]}
40. Rd5 {[%clk 0:01:04.8]} 40... Qb6 {[%clk 0:02:12]} 41. Rxh5+ {[%clk
0:01:03.2]} 1-0

[Event "Live Chess"]
[Site "Chess.com"]
[Date "2023.05.21"]
[Round "-"]
[White "GMHarry-youtube"]
[Black "smoggyrabbit"]
[Result "1-0"]
[WhiteElo "2044"]
[BlackElo "1745"]
[TimeControl "300"]
[EndTime "18:03:28 PDT"]
[Termination "GMHarry-youtube won by checkmate"]

1. e4 {[%clk 0:04:56.4]} 1... e6 {[%clk 0:04:59.1]} 2. d4 {[%clk 0:04:53.7]}
2... d5 {[%clk 0:04:58.3]} 3. e5 {[%clk 0:04:53.2]} 3... c5 {[%clk 0:04:56.9]}
4. c3 {[%clk 0:04:52.9]} 4... Nc6 {[%clk 0:04:55.5]} 5. Nf3 {[%clk 0:04:51.8]}
5... Bd7 {[%clk 0:04:54.6]} 6. Be2 {[%clk 0:04:50]} 6... Nge7 {[%clk 0:04:50.6]}
7. dxc5 {[%clk 0:04:47.9]} 7... Ng6 {[%clk 0:04:46.6]} 8. b4 {[%clk 0:04:46.2]}
8... Ngxe5 {[%clk 0:04:42.8]} 9. Nxe5 {[%clk 0:04:44.3]} 9... Nxe5 {[%clk
0:04:41.9]} 10. Bf4 {[%clk 0:04:43.9]} 10... Ng6 {[%clk 0:04:28.4]} 11. Bg3
{[%clk 0:04:38.6]} 11... a5 {[%clk 0:04:18.6]} 12. a3 {[%clk 0:04:30.7]} 12...
axb4 {[%clk 0:04:15.8]} 13. cxb4 {[%clk 0:04:28.1]} 13... b6 {[%clk 0:04:03]}
14. cxb6 {[%clk 0:04:21.8]} 14... Qxb6 {[%clk 0:04:00.6]} 15. Nd2 {[%clk
0:04:10.7]} 15... Bd6 {[%clk 0:03:45.9]} 16. Bxd6 {[%clk 0:04:05.3]} 16... Qxd6
{[%clk 0:03:45.8]} 17. Ne4 {[%clk 0:04:03.9]} 17... Qe5 {[%clk 0:03:35.7]} 18.
Nc5 {[%clk 0:03:57.4]} 18... Bb5 {[%clk 0:03:28.9]} 19. Ra2 {[%clk 0:03:51.2]}
19... Bc4 {[%clk 0:03:26.3]} 20. Ra1 {[%clk 0:03:46.4]} 20... Bxe2 {[%clk
0:03:24.2]} 21. Qc1 {[%clk 0:03:20.7]} 21... Bc4+ {[%clk 0:03:09.8]} 22. Kd2
{[%clk 0:03:12.8]} 22... Qe2+ {[%clk 0:03:02.2]} 23. Kc3 {[%clk 0:03:09.4]}
23... d4+ {[%clk 0:01:54.9]} 24. Kxd4 {[%clk 0:03:00.6]} 24... Rd8+ {[%clk
0:01:53.7]} 25. Kc3 {[%clk 0:02:55.1]} 25... Ne5 {[%clk 0:01:39.5]} 26. Rd1
{[%clk 0:02:49.3]} 26... O-O {[%clk 0:01:34.7]} 27. Qc2 {[%clk 0:02:43.8]} 27...
Qxc2+ {[%clk 0:01:09.8]} 28. Kxc2 {[%clk 0:02:42.5]} 28... Rd5 {[%clk
0:00:49.2]} 29. Rxd5 {[%clk 0:02:40.7]} 29... Bxd5 {[%clk 0:00:48.4]} 30. Re1
{[%clk 0:02:39.7]} 30... Ng6 {[%clk 0:00:43.8]} 31. a4 {[%clk 0:02:37.5]} 31...
Bxg2 {[%clk 0:00:39.6]} 32. a5 {[%clk 0:02:36.8]} 32... Rc8 {[%clk 0:00:37.9]}
33. a6 {[%clk 0:02:34.7]} 33... Nf4 {[%clk 0:00:32.4]} 34. Kb3 {[%clk
0:02:29.7]} 34... Bd5+ {[%clk 0:00:30.6]} 35. Ka4 {[%clk 0:02:28.2]} 35... Bc6+
{[%clk 0:00:25.5]} 36. b5 {[%clk 0:02:27]} 36... Bd5 {[%clk 0:00:22.8]} 37. Nd7
{[%clk 0:02:18.9]} 37... Nd3 {[%clk 0:00:20]} 38. Rb1 {[%clk 0:02:14.5]} 38...
Rc4+ {[%clk 0:00:18.3]} 39. Ka5 {[%clk 0:02:11.7]} 39... Rc2 {[%clk 0:00:17.1]}
40. Kb6 {[%clk 0:02:05.3]} 40... Rc3 {[%clk 0:00:14.9]} 41. Ra1 {[%clk
0:02:02.9]} 41... Rc8 {[%clk 0:00:12.5]} 42. a7 {[%clk 0:02:00.7]} 42... Nb4
{[%clk 0:00:11]} 43. Nc5 {[%clk 0:01:45.7]} 43... Nc2 {[%clk 0:00:10]} 44. Ra5
{[%clk 0:01:40.4]} 44... Nd4 {[%clk 0:00:08.6]} 45. Nb7 {[%clk 0:01:38.1]} 45...
Bxb7 {[%clk 0:00:07.5]} 46. Kxb7 {[%clk 0:01:36.7]} 46... Rd8 {[%clk 0:00:06.1]}
47. a8=Q {[%clk 0:01:36]} 47... Rxa8 {[%clk 0:00:03.3]} 48. Rxa8# {[%clk
0:01:35.9]} 1-0